{"text_format":"1","workbook":"xlsx","n_sheets":1,"sheets":["Лист1"],"not_rendered":{"charts":0,"images":0,"macros":1,"external_links":0,"defined_names":1,"comments":0,"pivot_tables":0},"unopened":[],"bounds":{"document_bytes":16777216,"sheet_cells":100000,"rows_first":2000,"rows_last":500,"rows_between":2000,"halvings":0,"cell_chars":16384,"cell_head_chars":4096},"cells_cut":0,"cells_raw":0,"read":"whole","date_system":"1900"}

{"sheet":"Лист1","index":0,"n_rows":415,"n_cols":51,"rows_kept":415,"cut":false,"hidden":false,"merged":[[0,0,0,24],[0,26,0,50]]}
["а",null,null,null,null,null,null,null,null,null,null,null,null,null,null,null,null,null,null,null,null,null,null,null,null,null,"b"]
[]
["№1",29,34,39,44,37,41,45,49,53,57,61,32,null,36,41,46,51,44,48,52,56,60,64,31,{"$f":"IF(SUM(AB3:AY3)>0,1,0)","v":1},"№1",1,1,1,1,1,1,1,1,1,1,1,1]
["№2",21,25,29,33,28,31,34,37,40,43,46,25,null,28,32,36,40,33,36,39,42,45,48,27,{"$f":"IF(SUM(AB4:AY4)>0,1,0)","v":0},"№2"]
["№3",16,19,22,25,27,29,31,24,25,22,23,23,null,21,24,27,30,30,32,32,34,36,38,25,{"$f":"IF(SUM(AB5:AY5)>0,1,0)","v":0},"№3"]
["№4",16,19,22,16,22,18,19,20,21,21,23,21,null,9,10,24,26,28,30,30,32,34,27,25,{"$f":"IF(SUM(AB6:AY6)>0,1,0)","v":0},"№4"]
["№5",15,17,19,16,17,18,19,20,20,18,16,21,null,5,5,16,17,26,28,24,25,26,23,25,{"$f":"IF(SUM(AB7:AY7)>0,1,0)","v":0},"№5"]
["№6",13,13,13,15,17,18,18,19,17,15,15,19,null,4,4,11,9,18,19,20,21,22,21,23,{"$f":"IF(SUM(AB8:AY8)>0,1,0)","v":0},"№6"]
["№7",8,9,10,11,17,14,15,16,14,15,15,19,null,4,4,8,9,10,10,11,11,11,15,22,{"$f":"IF(SUM(AB9:AY9)>0,1,0)","v":0},"№7"]
["№8",8,8,8,9,11,11,12,13,14,14,14,19,null,3,3,8,8,9,9,10,10,10,12,20,{"$f":"IF(SUM(AB10:AY10)>0,1,0)","v":0},"№8"]
["№9",8,7,8,9,10,11,12,13,13,13,14,18,null,2,2,7,7,8,8,9,9,9,10,20,{"$f":"IF(SUM(AB11:AY11)>0,1,0)","v":0},"№9"]
["№10",7,7,7,9,10,10,10,11,12,13,13,18,null,2,2,6,6,8,8,9,9,9,10,20,{"$f":"IF(SUM(AB12:AY12)>0,1,0)","v":0},"№10"]
["№11",6,7,7,8,9,10,10,11,12,12,13,18,null,1,1,6,5,7,7,8,8,8,9,19,{"$f":"IF(SUM(AB13:AY13)>0,1,0)","v":0},"№11"]
["№12",6,6,6,8,9,10,10,11,11,12,12,17,null,1,1,3,4,6,6,8,8,8,9,18,{"$f":"IF(SUM(AB14:AY14)>0,1,0)","v":0},"№12"]
["№13",5,6,6,7,9,10,10,10,10,12,12,17,null,1,1,2,4,5,5,6,6,6,8,18,{"$f":"IF(SUM(AB15:AY15)>0,1,0)","v":0},"№13"]
["№14",5,5,5,7,8,9,9,9,9,10,11,15,null,1,1,2,3,4,4,5,5,5,7,17,{"$f":"IF(SUM(AB16:AY16)>0,1,0)","v":0},"№14"]
["№15",4,4,4,6,8,8,8,9,9,9,10,15,null,1,1,1,3,3,3,4,5,5,5,17,{"$f":"IF(SUM(AB17:AY17)>0,1,0)","v":0},"№15"]
["№16",3,3,3,5,6,8,8,8,9,9,10,15,null,1,1,1,2,3,3,3,3,3,4,17,{"$f":"IF(SUM(AB18:AY18)>0,1,0)","v":0},"№16"]
["№17",2,2,2,4,5,8,8,8,8,9,9,14,null,null,null,1,1,2,2,3,3,3,3,15,{"$f":"IF(SUM(AB19:AY19)>0,1,0)","v":0},"№17"]
["№18",2,2,2,3,4,5,5,8,8,9,9,14,null,null,null,1,1,1,1,2,2,2,3,15,{"$f":"IF(SUM(AB20:AY20)>0,1,0)","v":0},"№18"]
["№19",1,2,2,3,3,4,4,5,8,8,9,13,null,null,null,1,1,1,1,1,1,1,2,12,{"$f":"IF(SUM(AB21:AY21)>0,1,0)","v":0},"№19"]
["№20",1,1,1,2,3,3,3,4,5,8,8,13,null,null,null,1,1,1,1,1,1,1,1,10,{"$f":"IF(SUM(AB22:AY22)>0,1,0)","v":0},"№20"]
["№21",1,1,1,2,3,3,3,3,4,5,5,12,null,null,null,1,1,1,1,1,1,1,1,10,{"$f":"IF(SUM(AB23:AY23)>0,1,0)","v":0},"№21"]
["№22",1,1,1,2,2,3,3,3,3,4,5,10,null,null,null,null,1,1,1,1,1,1,1,9,{"$f":"IF(SUM(AB24:AY24)>0,1,0)","v":0},"№22"]
["№23",1,1,1,1,2,2,2,2,3,3,4,9,null,null,null,null,null,1,1,1,1,1,1,8,{"$f":"IF(SUM(AB25:AY25)>0,1,0)","v":0},"№23"]
["№24",1,1,1,1,2,2,2,2,3,3,3,9,null,null,null,null,null,null,null,1,1,1,1,8,{"$f":"IF(SUM(AB26:AY26)>0,1,0)","v":0},"№24"]
["№25",1,1,1,1,2,2,2,2,2,2,3,8,null,null,null,null,null,null,null,1,1,1,1,8,{"$f":"IF(SUM(AB27:AY27)>0,1,0)","v":1},"№25",null,null,null,null,null,null,null,null,null,null,null,21,null,null,null,null,null,null,null,null,null,null,null,25]
["№26",1,1,1,1,1,2,2,2,2,2,2,8,null,null,null,null,null,null,null,1,null,null,1,8,{"$f":"IF(SUM(AB28:AY28)>0,1,0)","v":0},"№26"]
["№27",1,1,1,1,1,1,1,2,2,2,2,8,null,null,null,null,null,null,null,null,null,null,1,6,{"$f":"IF(SUM(AB29:AY29)>0,1,0)","v":0},"№27"]
["№28",1,1,1,1,1,1,1,2,2,2,2,5,null,null,null,null,null,null,null,null,null,null,1,5,{"$f":"IF(SUM(AB30:AY30)>0,1,0)","v":0},"№28"]
["№29",1,null,null,1,1,1,1,1,1,2,2,4,null,null,null,null,null,null,null,null,null,null,null,4,{"$f":"IF(SUM(AB31:AY31)>0,1,0)","v":0},"№29"]
["№30",null,null,null,1,1,1,1,1,1,1,2,3,null,null,null,null,null,null,null,null,null,null,null,4,{"$f":"IF(SUM(AB32:AY32)>0,1,0)","v":0},"№30"]
["№31",null,null,null,null,1,1,1,1,1,1,1,3,null,null,null,null,null,null,null,null,null,null,null,3,{"$f":"IF(SUM(AB33:AY33)>0,1,0)","v":0},"№31"]
["№32",null,null,null,null,1,1,1,1,1,1,1,2,null,null,null,null,null,null,null,null,null,null,null,3,{"$f":"IF(SUM(AB34:AY34)>0,1,0)","v":0},"№32"]
["№33",null,null,null,null,1,1,1,1,1,1,1,2,null,null,null,null,null,null,null,null,null,null,null,3,{"$f":"IF(SUM(AB35:AY35)>0,1,0)","v":0},"№33"]
["№34",null,null,null,null,null,1,1,1,1,1,1,2,null,null,null,null,null,null,null,null,null,null,null,2,{"$f":"IF(SUM(AB36:AY36)>0,1,0)","v":0},"№34"]
["№35",null,null,null,null,null,1,1,1,1,1,1,2,null,null,null,null,null,null,null,null,null,null,null,2,{"$f":"IF(SUM(AB37:AY37)>0,1,0)","v":0},"№35"]
["№36",null,null,null,null,null,null,null,1,1,1,1,2,null,null,null,null,null,null,null,null,null,null,null,2,{"$f":"IF(SUM(AB38:AY38)>0,1,0)","v":0},"№36"]
["№37",null,null,null,null,null,null,null,1,1,1,1,2,null,null,null,null,null,null,null,null,null,null,null,2,{"$f":"IF(SUM(AB39:AY39)>0,1,0)","v":0},"№37"]
["№38",null,null,null,null,null,null,null,null,1,1,1,2,null,null,null,null,null,null,null,null,null,null,null,1,{"$f":"IF(SUM(AB40:AY40)>0,1,0)","v":0},"№38"]
["№39",null,null,null,null,null,null,null,null,1,1,1,2,null,null,null,null,null,null,null,null,null,null,null,1,{"$f":"IF(SUM(AB41:AY41)>0,1,0)","v":0},"№39"]
["№40",null,null,null,null,null,null,null,null,null,1,1,1,null,null,null,null,null,null,null,null,null,null,null,1,{"$f":"IF(SUM(AB42:AY42)>0,1,0)","v":0},"№40"]
["№41",null,null,null,null,null,null,null,null,null,1,1,1,null,null,null,null,null,null,null,null,null,null,null,1,{"$f":"IF(SUM(AB43:AY43)>0,1,0)","v":0},"№41"]
["№42",null,null,null,null,null,null,null,null,null,1,1,1,null,null,null,null,null,null,null,null,null,null,null,1,{"$f":"IF(SUM(AB44:AY44)>0,1,0)","v":0},"№42"]
["№43",null,null,null,null,null,null,null,null,null,null,1,1,null,null,null,null,null,null,null,null,null,null,null,1,{"$f":"IF(SUM(AB45:AY45)>0,1,0)","v":0},"№43"]
["№44",null,null,null,null,null,null,null,null,null,null,1,1,null,null,null,null,null,null,null,null,null,null,null,1,{"$f":"IF(SUM(AB46:AY46)>0,1,0)","v":0},"№44"]
["№45",null,null,null,null,null,null,null,null,null,null,1,1,null,null,null,null,null,null,null,null,null,null,null,1,{"$f":"IF(SUM(AB47:AY47)>0,1,0)","v":0},"№45"]
["№46",null,null,null,null,null,null,null,null,null,null,null,1,null,null,null,null,null,null,null,null,null,null,null,1,{"$f":"IF(SUM(AB48:AY48)>0,1,0)","v":0},"№46"]
["№47",null,null,null,null,null,null,null,null,null,null,null,1,null,null,null,null,null,null,null,null,null,null,null,1,{"$f":"IF(SUM(AB49:AY49)>0,1,0)","v":1},"№47",null,null,null,null,null,null,null,null,null,null,null,18,null,null,null,null,null,null,null,null,null,null,null,22]
["№48",null,null,null,null,null,null,null,null,null,null,null,1,null,null,null,null,null,null,null,null,null,null,null,1,{"$f":"IF(SUM(AB50:AY50)>0,1,0)","v":0},"№48"]
["№49",null,null,null,null,null,null,null,null,null,null,null,1,null,null,null,null,null,null,null,null,null,null,null,null,{"$f":"IF(SUM(AB51:AY51)>0,1,0)","v":0},"№49"]
["№50",null,null,null,null,null,null,null,null,null,null,null,1,null,null,null,null,null,null,null,null,null,null,null,null,{"$f":"IF(SUM(AB52:AY52)>0,1,0)","v":0},"№50"]
["№51",null,null,null,null,null,null,null,null,null,null,null,1,null,null,null,null,null,null,null,null,null,null,null,null,{"$f":"IF(SUM(AB53:AY53)>0,1,0)","v":0},"№51"]
["№52",null,null,null,null,null,null,null,null,null,null,null,1,null,null,null,null,null,null,null,null,null,null,null,null,{"$f":"IF(SUM(AB54:AY54)>0,1,0)","v":0},"№52"]
["№53",null,null,null,null,null,null,null,null,null,null,null,1,null,null,null,null,null,null,null,null,null,null,null,null,{"$f":"IF(SUM(AB55:AY55)>0,1,0)","v":0},"№53"]
["№54",null,null,null,null,null,null,null,null,null,null,null,1,null,null,null,null,null,null,null,null,null,null,null,null,{"$f":"IF(SUM(AB56:AY56)>0,1,0)","v":0},"№54"]
["№55",null,null,null,null,null,null,null,null,null,null,null,1,null,null,null,null,null,null,null,null,null,null,null,null,{"$f":"IF(SUM(AB57:AY57)>0,1,0)","v":0},"№55"]
["№56",null,null,null,null,null,null,null,null,null,null,null,1,null,null,null,null,null,null,null,null,null,null,null,null,{"$f":"IF(SUM(AB58:AY58)>0,1,0)","v":0},"№56"]
["№57",null,null,null,null,null,null,null,null,null,null,null,1,null,null,null,null,null,null,null,null,null,null,null,null,{"$f":"IF(SUM(AB59:AY59)>0,1,0)","v":0},"№57"]
["№58",null,null,null,null,null,null,null,null,null,null,null,null,null,null,null,null,null,null,null,null,null,null,null,null,{"$f":"IF(SUM(AB60:AY60)>0,1,0)","v":0},"№58"]
["№59",null,null,null,null,null,null,null,null,null,null,null,null,null,null,null,null,null,null,null,null,null,null,null,null,{"$f":"IF(SUM(AB61:AY61)>0,1,0)","v":0},"№59"]
["№60",null,null,null,null,null,null,null,null,null,null,null,null,null,null,null,null,null,null,null,null,null,null,null,null,{"$f":"IF(SUM(AB62:AY62)>0,1,0)","v":0},"№60"]
["№61",null,null,null,null,null,null,null,null,null,null,null,null,null,null,null,null,null,null,null,null,null,null,null,null,{"$f":"IF(SUM(AB63:AY63)>0,1,0)","v":0},"№61"]
["№62",null,null,null,null,null,null,null,null,null,null,null,null,null,null,null,null,null,null,null,null,null,null,null,null,{"$f":"IF(SUM(AB64:AY64)>0,1,0)","v":0},"№62"]
["№63",null,null,null,null,null,null,null,null,null,null,null,null,null,null,null,null,null,null,null,null,null,null,null,null,{"$f":"IF(SUM(AB65:AY65)>0,1,0)","v":0},"№63"]
["№64",null,null,null,null,null,null,null,null,null,null,null,null,null,null,null,null,null,null,null,null,null,null,null,null,{"$f":"IF(SUM(AB66:AY66)>0,1,0)","v":0},"№64"]
["№65",null,null,null,null,null,null,null,null,null,null,null,null,null,null,null,null,null,null,null,null,null,null,null,null,{"$f":"IF(SUM(AB67:AY67)>0,1,0)","v":0},"№65"]
["№66",null,null,null,null,null,null,null,null,null,null,null,null,null,null,null,null,null,null,null,null,null,null,null,null,{"$f":"IF(SUM(AB68:AY68)>0,1,0)","v":0},"№66"]
["№67",null,null,null,null,null,null,null,null,null,null,null,null,null,null,null,null,null,null,null,null,null,null,null,null,{"$f":"IF(SUM(AB69:AY69)>0,1,0)","v":0},"№67"]
["№68",null,null,null,null,null,null,null,null,null,null,null,null,null,null,null,null,null,null,null,null,null,null,null,null,{"$f":"IF(SUM(AB70:AY70)>0,1,0)","v":0},"№68"]
["№69",null,null,null,null,null,null,null,null,null,null,null,null,null,null,null,null,null,null,null,null,null,null,null,null,{"$f":"IF(SUM(AB71:AY71)>0,1,0)","v":0},"№69"]
["№70",null,null,null,null,null,null,null,null,null,null,null,null,null,null,null,null,null,null,null,null,null,null,null,null,{"$f":"IF(SUM(AB72:AY72)>0,1,0)","v":0},"№70"]
["№71",null,null,null,null,null,null,null,null,null,null,null,null,null,null,null,null,null,null,null,null,null,null,null,null,{"$f":"IF(SUM(AB73:AY73)>0,1,0)","v":0},"№71"]
["№72",null,null,null,null,null,null,null,null,null,null,null,null,null,null,null,null,null,null,null,null,null,null,null,null,{"$f":"IF(SUM(AB74:AY74)>0,1,0)","v":0},"№72"]
["№73",null,null,null,null,null,null,null,null,null,null,null,null,null,null,null,null,null,null,null,null,null,null,null,null,{"$f":"IF(SUM(AB75:AY75)>0,1,0)","v":0},"№73"]
["№74",null,null,null,null,null,null,null,null,null,null,null,null,null,null,null,null,null,null,null,null,null,null,null,null,{"$f":"IF(SUM(AB76:AY76)>0,1,0)","v":0},"№74"]
["№75",null,null,null,null,null,null,null,null,null,null,null,null,null,null,null,null,null,null,null,null,null,null,null,null,{"$f":"IF(SUM(AB77:AY77)>0,1,0)","v":0},"№75"]
["№76",null,null,null,null,null,null,null,null,null,null,null,null,null,null,null,null,null,null,null,null,null,null,null,null,{"$f":"IF(SUM(AB78:AY78)>0,1,0)","v":0},"№76"]
["№77",null,null,null,null,null,null,null,null,null,null,null,null,null,null,null,null,null,null,null,null,null,null,null,null,{"$f":"IF(SUM(AB79:AY79)>0,1,0)","v":0},"№77"]
["№78",null,null,null,null,null,null,null,null,null,null,null,null,null,null,null,null,null,null,null,null,null,null,null,null,{"$f":"IF(SUM(AB80:AY80)>0,1,0)","v":1},"№78",null,null,null,null,null,null,null,null,null,null,null,25,null,null,null,null,null,null,null,null,null,null,null,31]
["№79",null,null,null,null,null,null,null,null,null,null,null,null,null,null,null,null,null,null,null,null,null,null,null,null,{"$f":"IF(SUM(AB81:AY81)>0,1,0)","v":1},"№79",16,19,22,25,28,31,34,37,40,43,46,1]
["№80",null,null,null,null,null,null,null,null,null,null,null,null,null,null,null,null,null,null,null,null,null,null,null,null,{"$f":"IF(SUM(AB82:AY82)>0,1,0)","v":0},"№80"]
["№81",null,null,null,null,null,null,null,null,null,null,null,null,null,null,null,null,null,null,null,null,null,null,null,null,{"$f":"IF(SUM(AB83:AY83)>0,1,0)","v":1},"№81",2,2,2,2,2,2,2,2,2,2,2,2,null,21,24,27,30,33,36,39,42,45,48,3]
["№82",null,null,null,null,null,null,null,null,null,null,null,null,null,null,null,null,null,null,null,null,null,null,null,null,{"$f":"IF(SUM(AB84:AY84)>0,1,0)","v":1},"№82",1,1,1,1,1,1,1,1,1,1,1,1]
["№83",null,null,null,null,null,null,null,null,null,null,null,null,null,null,null,null,null,null,null,null,null,null,null,null,{"$f":"IF(SUM(AB85:AY85)>0,1,0)","v":0},"№83"]
["№84",null,null,null,null,null,null,null,null,null,null,null,null,null,null,null,null,null,null,null,null,null,null,null,null,{"$f":"IF(SUM(AB86:AY86)>0,1,0)","v":0},"№84"]
["№85",null,null,null,null,null,null,null,null,null,null,null,null,null,null,null,null,null,null,null,null,null,null,null,null,{"$f":"IF(SUM(AB87:AY87)>0,1,0)","v":0},"№85"]
["№86",null,null,null,null,null,null,null,null,null,null,null,null,null,null,null,null,null,null,null,null,null,null,null,null,{"$f":"IF(SUM(AB88:AY88)>0,1,0)","v":0},"№86"]
["№87",null,null,null,null,null,null,null,null,null,null,null,null,null,null,null,null,null,null,null,null,null,null,null,null,{"$f":"IF(SUM(AB89:AY89)>0,1,0)","v":0},"№87"]
["№88",null,null,null,null,null,null,null,null,null,null,null,null,null,null,null,null,null,null,null,null,null,null,null,null,{"$f":"IF(SUM(AB90:AY90)>0,1,0)","v":0},"№88"]
["№89",null,null,null,null,null,null,null,null,null,null,null,null,null,null,null,null,null,null,null,null,null,null,null,null,{"$f":"IF(SUM(AB91:AY91)>0,1,0)","v":0},"№89"]
["№90",null,null,null,null,null,null,null,null,null,null,null,null,null,null,null,null,null,null,null,null,null,null,null,null,{"$f":"IF(SUM(AB92:AY92)>0,1,0)","v":0},"№90"]
["№91",null,null,null,null,null,null,null,null,null,null,null,null,null,null,null,null,null,null,null,null,null,null,null,null,{"$f":"IF(SUM(AB93:AY93)>0,1,0)","v":0},"№91"]
["№92",null,null,null,null,null,null,null,null,null,null,null,null,null,null,null,null,null,null,null,null,null,null,null,null,{"$f":"IF(SUM(AB94:AY94)>0,1,0)","v":0},"№92"]
["№93",null,null,null,null,null,null,null,null,null,null,null,null,null,null,null,null,null,null,null,null,null,null,null,null,{"$f":"IF(SUM(AB95:AY95)>0,1,0)","v":0},"№93"]
["№94",null,null,null,null,null,null,null,null,null,null,null,null,null,null,null,null,null,null,null,null,null,null,null,null,{"$f":"IF(SUM(AB96:AY96)>0,1,0)","v":0},"№94"]
["№95",null,null,null,null,null,null,null,null,null,null,null,null,null,null,null,null,null,null,null,null,null,null,null,null,{"$f":"IF(SUM(AB97:AY97)>0,1,0)","v":0},"№95"]
["№96",null,null,null,null,null,null,null,null,null,null,null,null,null,null,null,null,null,null,null,null,null,null,null,null,{"$f":"IF(SUM(AB98:AY98)>0,1,0)","v":0},"№96"]
["№97",null,null,null,null,null,null,null,null,null,null,null,null,null,null,null,null,null,null,null,null,null,null,null,null,{"$f":"IF(SUM(AB99:AY99)>0,1,0)","v":0},"№97"]
["№98",null,null,null,null,null,null,null,null,null,null,null,null,null,null,null,null,null,null,null,null,null,null,null,null,{"$f":"IF(SUM(AB100:AY100)>0,1,0)","v":0},"№98"]
["№99",null,null,null,null,null,null,null,null,null,null,null,null,null,null,null,null,null,null,null,null,null,null,null,null,{"$f":"IF(SUM(AB101:AY101)>0,1,0)","v":1},"№99",null,null,null,null,null,null,null,null,null,14,14,14,null,null,null,null,null,null,null,null,null,null,null,18]
["№100",null,null,null,null,null,null,null,null,null,null,null,null,null,null,null,null,null,null,null,null,null,null,null,null,{"$f":"IF(SUM(AB102:AY102)>0,1,0)","v":0},"№100"]
["№101",null,null,null,null,null,null,null,null,null,null,null,null,null,null,null,null,null,null,null,null,null,null,null,null,{"$f":"IF(SUM(AB103:AY103)>0,1,0)","v":0},"№101"]
["№102",null,null,null,null,null,null,null,null,null,null,null,null,null,null,null,null,null,null,null,null,null,null,null,null,{"$f":"IF(SUM(AB104:AY104)>0,1,0)","v":0},"№102"]
["№103",null,null,null,null,null,null,null,null,null,null,null,null,null,null,null,null,null,null,null,null,null,null,null,null,{"$f":"IF(SUM(AB105:AY105)>0,1,0)","v":0},"№103"]
["№104",null,null,null,null,null,null,null,null,null,null,null,null,null,null,null,null,null,null,null,null,null,null,null,null,{"$f":"IF(SUM(AB106:AY106)>0,1,0)","v":0},"№104"]
["№105",null,null,null,null,null,null,null,null,null,null,null,null,null,null,null,null,null,null,null,null,null,null,null,null,{"$f":"IF(SUM(AB107:AY107)>0,1,0)","v":0},"№105"]
["№106",null,null,null,null,null,null,null,null,null,null,null,null,null,null,null,null,null,null,null,null,null,null,null,null,{"$f":"IF(SUM(AB108:AY108)>0,1,0)","v":0},"№106"]
["№107",null,null,null,null,null,null,null,null,null,null,null,null,null,null,null,null,null,null,null,null,null,null,null,null,{"$f":"IF(SUM(AB109:AY109)>0,1,0)","v":0},"№107"]
["№108",null,null,null,null,null,null,null,null,null,null,null,null,null,null,null,null,null,null,null,null,null,null,null,null,{"$f":"IF(SUM(AB110:AY110)>0,1,0)","v":0},"№108"]
["№109",null,null,null,null,null,null,null,null,null,null,null,null,null,null,null,null,null,null,null,null,null,null,null,null,{"$f":"IF(SUM(AB111:AY111)>0,1,0)","v":0},"№109"]
["№110",null,null,null,null,null,null,null,null,null,null,null,null,null,null,null,null,null,null,null,null,null,null,null,null,{"$f":"IF(SUM(AB112:AY112)>0,1,0)","v":0},"№110"]
["№111",null,null,null,null,null,null,null,null,null,null,null,null,null,null,null,null,null,null,null,null,null,null,null,null,{"$f":"IF(SUM(AB113:AY113)>0,1,0)","v":1},"№111",null,null,null,null,null,null,null,24,25,12,12,12,null,null,null,null,null,null,null,24,25,26,27,12]
["№112",null,null,null,null,null,null,null,null,null,null,null,null,null,null,null,null,null,null,null,null,null,null,null,null,{"$f":"IF(SUM(AB114:AY114)>0,1,0)","v":0},"№112"]
["№113",null,null,null,null,null,null,null,null,null,null,null,null,null,null,null,null,null,null,null,null,null,null,null,null,{"$f":"IF(SUM(AB115:AY115)>0,1,0)","v":0},"№113"]
["№114",null,null,null,null,null,null,null,null,null,null,null,null,null,null,null,null,null,null,null,null,null,null,null,null,{"$f":"IF(SUM(AB116:AY116)>0,1,0)","v":0},"№114"]
["№115",null,null,null,null,null,null,null,null,null,null,null,null,null,null,null,null,null,null,null,null,null,null,null,null,{"$f":"IF(SUM(AB117:AY117)>0,1,0)","v":0},"№115"]
["№116",null,null,null,null,null,null,null,null,null,null,null,null,null,null,null,null,null,null,null,null,null,null,null,null,{"$f":"IF(SUM(AB118:AY118)>0,1,0)","v":0},"№116"]
["№117",null,null,null,null,null,null,null,null,null,null,null,null,null,null,null,null,null,null,null,null,null,null,null,null,{"$f":"IF(SUM(AB119:AY119)>0,1,0)","v":0},"№117"]
["№118",null,null,null,null,null,null,null,null,null,null,null,null,null,null,null,null,null,null,null,null,null,null,null,null,{"$f":"IF(SUM(AB120:AY120)>0,1,0)","v":0},"№118"]
["№119",null,null,null,null,null,null,null,null,null,null,null,null,null,null,null,null,null,null,null,null,null,null,null,null,{"$f":"IF(SUM(AB121:AY121)>0,1,0)","v":0},"№119"]
["№120",null,null,null,null,null,null,null,null,null,null,null,null,null,null,null,null,null,null,null,null,null,null,null,null,{"$f":"IF(SUM(AB122:AY122)>0,1,0)","v":0},"№120"]
["№121",null,null,null,null,null,null,null,null,null,null,null,null,null,null,null,null,null,null,null,null,null,null,null,null,{"$f":"IF(SUM(AB123:AY123)>0,1,0)","v":1},"№121",null,null,null,null,27,29,31,9,9,9,9,9,null,null,null,null,null,30,32,10,10,10,10,10]
["№122",null,null,null,null,null,null,null,null,null,null,null,null,null,null,null,null,null,null,null,null,null,null,null,null,{"$f":"IF(SUM(AB124:AY124)>0,1,0)","v":0},"№122"]
["№123",null,null,null,null,null,null,null,null,null,null,null,null,null,null,null,null,null,null,null,null,null,null,null,null,{"$f":"IF(SUM(AB125:AY125)>0,1,0)","v":0},"№123"]
["№124",null,null,null,null,null,null,null,null,null,null,null,null,null,null,null,null,null,null,null,null,null,null,null,null,{"$f":"IF(SUM(AB126:AY126)>0,1,0)","v":0},"№124"]
["№125",null,null,null,null,null,null,null,null,null,null,null,null,null,null,null,null,null,null,null,null,null,null,null,null,{"$f":"IF(SUM(AB127:AY127)>0,1,0)","v":0},"№125"]
["№126",null,null,null,null,null,null,null,null,null,null,null,null,null,null,null,null,null,null,null,null,null,null,null,null,{"$f":"IF(SUM(AB128:AY128)>0,1,0)","v":0},"№126"]
["№127",null,null,null,null,null,null,null,null,null,null,null,null,null,null,null,null,null,null,null,null,null,null,null,null,{"$f":"IF(SUM(AB129:AY129)>0,1,0)","v":0},"№127"]
["№128",null,null,null,null,null,null,null,null,null,null,null,null,null,null,null,null,null,null,null,null,null,null,null,null,{"$f":"IF(SUM(AB130:AY130)>0,1,0)","v":0},"№128"]
["№129",null,null,null,null,null,null,null,null,null,null,null,null,null,null,null,null,null,null,null,null,null,null,null,null,{"$f":"IF(SUM(AB131:AY131)>0,1,0)","v":0},"№129"]
["№130",null,null,null,null,null,null,null,null,null,null,null,null,null,null,null,null,null,null,null,null,null,null,null,null,{"$f":"IF(SUM(AB132:AY132)>0,1,0)","v":0},"№130"]
["№131",null,null,null,null,null,null,null,null,null,null,null,null,null,null,null,null,null,null,null,null,null,null,null,null,{"$f":"IF(SUM(AB133:AY133)>0,1,0)","v":0},"№131"]
["№132",null,null,null,null,null,null,null,null,null,null,null,null,null,null,null,null,null,null,null,null,null,null,null,null,{"$f":"IF(SUM(AB134:AY134)>0,1,0)","v":0},"№132"]
["№133",null,null,null,null,null,null,null,null,null,null,null,null,null,null,null,null,null,null,null,null,null,null,null,null,{"$f":"IF(SUM(AB135:AY135)>0,1,0)","v":0},"№133"]
["№134",null,null,null,null,null,null,null,null,null,null,null,null,null,null,null,null,null,null,null,null,null,null,null,null,{"$f":"IF(SUM(AB136:AY136)>0,1,0)","v":0},"№134"]
["№135",null,null,null,null,null,null,null,null,null,null,null,null,null,null,null,null,null,null,null,null,null,null,null,null,{"$f":"IF(SUM(AB137:AY137)>0,1,0)","v":0},"№135"]
["№136",null,null,null,null,null,null,null,null,null,null,null,null,null,null,null,null,null,null,null,null,null,null,null,null,{"$f":"IF(SUM(AB138:AY138)>0,1,0)","v":1},"№136",null,null,null,null,null,10,10,10,10,10,10,10,null,null,null,null,null,null,null,null,null,null,15,15]
["№137",null,null,null,null,null,null,null,null,null,null,null,null,null,null,null,null,null,null,null,null,null,null,null,null,{"$f":"IF(SUM(AB139:AY139)>0,1,0)","v":0},"№137"]
["№138",null,null,null,null,null,null,null,null,null,null,null,null,null,null,null,null,null,null,null,null,null,null,null,null,{"$f":"IF(SUM(AB140:AY140)>0,1,0)","v":0},"№138"]
["№139",null,null,null,null,null,null,null,null,null,null,null,null,null,null,null,null,null,null,null,null,null,null,null,null,{"$f":"IF(SUM(AB141:AY141)>0,1,0)","v":0},"№139"]
["№140",null,null,null,null,null,null,null,null,null,null,null,null,null,null,null,null,null,null,null,null,null,null,null,null,{"$f":"IF(SUM(AB142:AY142)>0,1,0)","v":0},"№140"]
["№141",null,null,null,null,null,null,null,null,null,null,null,null,null,null,null,null,null,null,null,null,null,null,null,null,{"$f":"IF(SUM(AB143:AY143)>0,1,0)","v":0},"№141"]
["№142",null,null,null,null,null,null,null,null,null,null,null,null,null,null,null,null,null,null,null,null,null,null,null,null,{"$f":"IF(SUM(AB144:AY144)>0,1,0)","v":0},"№142"]
["№143",null,null,null,null,null,null,null,null,null,null,null,null,null,null,null,null,null,null,null,null,null,null,null,null,{"$f":"IF(SUM(AB145:AY145)>0,1,0)","v":0},"№143"]
["№144",null,null,null,null,null,null,null,null,null,null,null,null,null,null,null,null,null,null,null,null,null,null,null,null,{"$f":"IF(SUM(AB146:AY146)>0,1,0)","v":0},"№144"]
["№145",null,null,null,null,null,null,null,null,null,null,null,null,null,null,null,null,null,null,null,null,null,null,null,null,{"$f":"IF(SUM(AB147:AY147)>0,1,0)","v":0},"№145"]
["№146",null,null,null,null,null,null,null,null,null,null,null,null,null,null,null,null,null,null,null,null,null,null,null,null,{"$f":"IF(SUM(AB148:AY148)>0,1,0)","v":0},"№146"]
["№147",null,null,null,null,null,null,null,null,null,null,null,null,null,null,null,null,null,null,null,null,null,null,null,null,{"$f":"IF(SUM(AB149:AY149)>0,1,0)","v":0},"№147"]
["№148",null,null,null,null,null,null,null,null,null,null,null,null,null,null,null,null,null,null,null,null,null,null,null,null,{"$f":"IF(SUM(AB150:AY150)>0,1,0)","v":0},"№148"]
["№149",null,null,null,null,null,null,null,null,null,null,null,null,null,null,null,null,null,null,null,null,null,null,null,null,{"$f":"IF(SUM(AB151:AY151)>0,1,0)","v":0},"№149"]
["№150",null,null,null,null,null,null,null,null,null,null,null,null,null,null,null,null,null,null,null,null,null,null,null,null,{"$f":"IF(SUM(AB152:AY152)>0,1,0)","v":0},"№150"]
["№151",null,null,null,null,null,null,null,null,null,null,null,null,null,null,null,null,null,null,null,null,null,null,null,null,{"$f":"IF(SUM(AB153:AY153)>0,1,0)","v":0},"№151"]
["№152",null,null,null,null,null,null,null,null,null,null,null,null,null,null,null,null,null,null,null,null,null,null,null,null,{"$f":"IF(SUM(AB154:AY154)>0,1,0)","v":0},"№152"]
["№153",null,null,null,null,null,null,null,null,null,null,null,null,null,null,null,null,null,null,null,null,null,null,null,null,{"$f":"IF(SUM(AB155:AY155)>0,1,0)","v":1},"№153",null,null,null,null,null,null,null,null,null,null,15,15,null,null,null,null,null,null,null,null,null,null,null,17]
["№154",null,null,null,null,null,null,null,null,null,null,null,null,null,null,null,null,null,null,null,null,null,null,null,null,{"$f":"IF(SUM(AB156:AY156)>0,1,0)","v":0},"№154"]
["№155",null,null,null,null,null,null,null,null,null,null,null,null,null,null,null,null,null,null,null,null,null,null,null,null,{"$f":"IF(SUM(AB157:AY157)>0,1,0)","v":0},"№155"]
["№156",null,null,null,null,null,null,null,null,null,null,null,null,null,null,null,null,null,null,null,null,null,null,null,null,{"$f":"IF(SUM(AB158:AY158)>0,1,0)","v":0},"№156"]
["№157",null,null,null,null,null,null,null,null,null,null,null,null,null,null,null,null,null,null,null,null,null,null,null,null,{"$f":"IF(SUM(AB159:AY159)>0,1,0)","v":0},"№157"]
["№158",null,null,null,null,null,null,null,null,null,null,null,null,null,null,null,null,null,null,null,null,null,null,null,null,{"$f":"IF(SUM(AB160:AY160)>0,1,0)","v":0},"№158"]
["№159",null,null,null,null,null,null,null,null,null,null,null,null,null,null,null,null,null,null,null,null,null,null,null,null,{"$f":"IF(SUM(AB161:AY161)>0,1,0)","v":1},"№159",29,34,39,44,22,14,15,16,17,18,4,4,null,36,41,46,51,26,28,30,32,34,21,6]
["№160",null,null,null,null,null,null,null,null,null,null,null,null,null,null,null,null,null,null,null,null,null,null,null,null,{"$f":"IF(SUM(AB162:AY162)>0,1,0)","v":1},"№160",1,1,1,1,1,1,1,1,1,1,1,1]
["№161",null,null,null,null,null,null,null,null,null,null,null,null,null,null,null,null,null,null,null,null,null,null,null,null,{"$f":"IF(SUM(AB163:AY163)>0,1,0)","v":0},"№161"]
["№162",null,null,null,null,null,null,null,null,null,null,null,null,null,null,null,null,null,null,null,null,null,null,null,null,{"$f":"IF(SUM(AB164:AY164)>0,1,0)","v":0},"№162"]
["№163",null,null,null,null,null,null,null,null,null,null,null,null,null,null,null,null,null,null,null,null,null,null,null,null,{"$f":"IF(SUM(AB165:AY165)>0,1,0)","v":0},"№163"]
["№164",null,null,null,null,null,null,null,null,null,null,null,null,null,null,null,null,null,null,null,null,null,null,null,null,{"$f":"IF(SUM(AB166:AY166)>0,1,0)","v":0},"№164"]
["№165",null,null,null,null,null,null,null,null,null,null,null,null,null,null,null,null,null,null,null,null,null,null,null,null,{"$f":"IF(SUM(AB167:AY167)>0,1,0)","v":0},"№165"]
["№166",null,null,null,null,null,null,null,null,null,null,null,null,null,null,null,null,null,null,null,null,null,null,null,null,{"$f":"IF(SUM(AB168:AY168)>0,1,0)","v":0},"№166"]
["№167",null,null,null,null,null,null,null,null,null,null,null,null,null,null,null,null,null,null,null,null,null,null,null,null,{"$f":"IF(SUM(AB169:AY169)>0,1,0)","v":0},"№167"]
["№168",null,null,null,null,null,null,null,null,null,null,null,null,null,null,null,null,null,null,null,null,null,null,null,null,{"$f":"IF(SUM(AB170:AY170)>0,1,0)","v":0},"№168"]
["№169",null,null,null,null,null,null,null,null,null,null,null,null,null,null,null,null,null,null,null,null,null,null,null,null,{"$f":"IF(SUM(AB171:AY171)>0,1,0)","v":0},"№169"]
["№170",null,null,null,null,null,null,null,null,null,null,null,null,null,null,null,null,null,null,null,null,null,null,null,null,{"$f":"IF(SUM(AB172:AY172)>0,1,0)","v":0},"№170"]
["№171",null,null,null,null,null,null,null,null,null,null,null,null,null,null,null,null,null,null,null,null,null,null,null,null,{"$f":"IF(SUM(AB173:AY173)>0,1,0)","v":0},"№171"]
["№172",null,null,null,null,null,null,null,null,null,null,null,null,null,null,null,null,null,null,null,null,null,null,null,null,{"$f":"IF(SUM(AB174:AY174)>0,1,0)","v":0},"№172"]
["№173",null,null,null,null,null,null,null,null,null,null,null,null,null,null,null,null,null,null,null,null,null,null,null,null,{"$f":"IF(SUM(AB175:AY175)>0,1,0)","v":0},"№173"]
["№174",null,null,null,null,null,null,null,null,null,null,null,null,null,null,null,null,null,null,null,null,null,null,null,null,{"$f":"IF(SUM(AB176:AY176)>0,1,0)","v":0},"№174"]
["№175",null,null,null,null,null,null,null,null,null,null,null,null,null,null,null,null,null,null,null,null,null,null,null,null,{"$f":"IF(SUM(AB177:AY177)>0,1,0)","v":0},"№175"]
["№176",null,null,null,null,null,null,null,null,null,null,null,null,null,null,null,null,null,null,null,null,null,null,null,null,{"$f":"IF(SUM(AB178:AY178)>0,1,0)","v":0},"№176"]
["№177",null,null,null,null,null,null,null,null,null,null,null,null,null,null,null,null,null,null,null,null,null,null,null,null,{"$f":"IF(SUM(AB179:AY179)>0,1,0)","v":0},"№177"]
["№178",null,null,null,null,null,null,null,null,null,null,null,null,null,null,null,null,null,null,null,null,null,null,null,null,{"$f":"IF(SUM(AB180:AY180)>0,1,0)","v":0},"№178"]
["№179",null,null,null,null,null,null,null,null,null,null,null,null,null,null,null,null,null,null,null,null,null,null,null,null,{"$f":"IF(SUM(AB181:AY181)>0,1,0)","v":0},"№179"]
["№180",null,null,null,null,null,null,null,null,null,null,null,null,null,null,null,null,null,null,null,null,null,null,null,null,{"$f":"IF(SUM(AB182:AY182)>0,1,0)","v":0},"№180"]
["№181",null,null,null,null,null,null,null,null,null,null,null,null,null,null,null,null,null,null,null,null,null,null,null,null,{"$f":"IF(SUM(AB183:AY183)>0,1,0)","v":0},"№181"]
["№182",null,null,null,null,null,null,null,null,null,null,null,null,null,null,null,null,null,null,null,null,null,null,null,null,{"$f":"IF(SUM(AB184:AY184)>0,1,0)","v":0},"№182"]
["№183",null,null,null,null,null,null,null,null,null,null,null,null,null,null,null,null,null,null,null,null,null,null,null,null,{"$f":"IF(SUM(AB185:AY185)>0,1,0)","v":0},"№183"]
["№184",null,null,null,null,null,null,null,null,null,null,null,null,null,null,null,null,null,null,null,null,null,null,null,null,{"$f":"IF(SUM(AB186:AY186)>0,1,0)","v":1},"№184",null,null,null,null,null,null,null,null,null,null,null,21,null,null,null,null,null,null,null,null,null,null,null,25]
["№185",null,null,null,null,null,null,null,null,null,null,null,null,null,null,null,null,null,null,null,null,null,null,null,null,{"$f":"IF(SUM(AB187:AY187)>0,1,0)","v":0},"№185"]
["№186",null,null,null,null,null,null,null,null,null,null,null,null,null,null,null,null,null,null,null,null,null,null,null,null,{"$f":"IF(SUM(AB188:AY188)>0,1,0)","v":0},"№186"]
["№187",null,null,null,null,null,null,null,null,null,null,null,null,null,null,null,null,null,null,null,null,null,null,null,null,{"$f":"IF(SUM(AB189:AY189)>0,1,0)","v":0},"№187"]
["№188",null,null,null,null,null,null,null,null,null,null,null,null,null,null,null,null,null,null,null,null,null,null,null,null,{"$f":"IF(SUM(AB190:AY190)>0,1,0)","v":0},"№188"]
["№189",null,null,null,null,null,null,null,null,null,null,null,null,null,null,null,null,null,null,null,null,null,null,null,null,{"$f":"IF(SUM(AB191:AY191)>0,1,0)","v":0},"№189"]
["№190",null,null,null,null,null,null,null,null,null,null,null,null,null,null,null,null,null,null,null,null,null,null,null,null,{"$f":"IF(SUM(AB192:AY192)>0,1,0)","v":0},"№190"]
["№191",null,null,null,null,null,null,null,null,null,null,null,null,null,null,null,null,null,null,null,null,null,null,null,null,{"$f":"IF(SUM(AB193:AY193)>0,1,0)","v":0},"№191"]
["№192",null,null,null,null,null,null,null,null,null,null,null,null,null,null,null,null,null,null,null,null,null,null,null,null,{"$f":"IF(SUM(AB194:AY194)>0,1,0)","v":0},"№192"]
["№193",null,null,null,null,null,null,null,null,null,null,null,null,null,null,null,null,null,null,null,null,null,null,null,null,{"$f":"IF(SUM(AB195:AY195)>0,1,0)","v":0},"№193"]
["№194",null,null,null,null,null,null,null,null,null,null,null,null,null,null,null,null,null,null,null,null,null,null,null,null,{"$f":"IF(SUM(AB196:AY196)>0,1,0)","v":0},"№194"]
["№195",null,null,null,null,null,null,null,null,null,null,null,null,null,null,null,null,null,null,null,null,null,null,null,null,{"$f":"IF(SUM(AB197:AY197)>0,1,0)","v":0},"№195"]
["№196",null,null,null,null,null,null,null,null,null,null,null,null,null,null,null,null,null,null,null,null,null,null,null,null,{"$f":"IF(SUM(AB198:AY198)>0,1,0)","v":0},"№196"]
["№197",null,null,null,null,null,null,null,null,null,null,null,null,null,null,null,null,null,null,null,null,null,null,null,null,{"$f":"IF(SUM(AB199:AY199)>0,1,0)","v":0},"№197"]
["№198",null,null,null,null,null,null,null,null,null,null,null,null,null,null,null,null,null,null,null,null,null,null,null,null,{"$f":"IF(SUM(AB200:AY200)>0,1,0)","v":0},"№198"]
["№199",null,null,null,null,null,null,null,null,null,null,null,null,null,null,null,null,null,null,null,null,null,null,null,null,{"$f":"IF(SUM(AB201:AY201)>0,1,0)","v":0},"№199"]
["№200",null,null,null,null,null,null,null,null,null,null,null,null,null,null,null,null,null,null,null,null,null,null,null,null,{"$f":"IF(SUM(AB202:AY202)>0,1,0)","v":0},"№200"]
["№201",null,null,null,null,null,null,null,null,null,null,null,null,null,null,null,null,null,null,null,null,null,null,null,null,{"$f":"IF(SUM(AB203:AY203)>0,1,0)","v":0},"№201"]
["№202",null,null,null,null,null,null,null,null,null,null,null,null,null,null,null,null,null,null,null,null,null,null,null,null,{"$f":"IF(SUM(AB204:AY204)>0,1,0)","v":0},"№202"]
["№203",null,null,null,null,null,null,null,null,null,null,null,null,null,null,null,null,null,null,null,null,null,null,null,null,{"$f":"IF(SUM(AB205:AY205)>0,1,0)","v":1},"№203",null,null,null,null,null,null,null,null,null,null,null,19,null,null,null,null,null,null,null,null,null,null,null,19]
["№204",null,null,null,null,null,null,null,null,null,null,null,null,null,null,null,null,null,null,null,null,null,null,null,null,{"$f":"IF(SUM(AB206:AY206)>0,1,0)","v":0},"№204"]
["№205",null,null,null,null,null,null,null,null,null,null,null,null,null,null,null,null,null,null,null,null,null,null,null,null,{"$f":"IF(SUM(AB207:AY207)>0,1,0)","v":0},"№205"]
["№206",null,null,null,null,null,null,null,null,null,null,null,null,null,null,null,null,null,null,null,null,null,null,null,null,{"$f":"IF(SUM(AB208:AY208)>0,1,0)","v":0},"№206"]
["№207",null,null,null,null,null,null,null,null,null,null,null,null,null,null,null,null,null,null,null,null,null,null,null,null,{"$f":"IF(SUM(AB209:AY209)>0,1,0)","v":0},"№207"]
["№208",null,null,null,null,null,null,null,null,null,null,null,null,null,null,null,null,null,null,null,null,null,null,null,null,{"$f":"IF(SUM(AB210:AY210)>0,1,0)","v":0},"№208"]
["№209",null,null,null,null,null,null,null,null,null,null,null,null,null,null,null,null,null,null,null,null,null,null,null,null,{"$f":"IF(SUM(AB211:AY211)>0,1,0)","v":0},"№209"]
["№210",null,null,null,null,null,null,null,null,null,null,null,null,null,null,null,null,null,null,null,null,null,null,null,null,{"$f":"IF(SUM(AB212:AY212)>0,1,0)","v":0},"№210"]
["№211",null,null,null,null,null,null,null,null,null,null,null,null,null,null,null,null,null,null,null,null,null,null,null,null,{"$f":"IF(SUM(AB213:AY213)>0,1,0)","v":0},"№211"]
["№212",null,null,null,null,null,null,null,null,null,null,null,null,null,null,null,null,null,null,null,null,null,null,null,null,{"$f":"IF(SUM(AB214:AY214)>0,1,0)","v":0},"№212"]
["№213",null,null,null,null,null,null,null,null,null,null,null,null,null,null,null,null,null,null,null,null,null,null,null,null,{"$f":"IF(SUM(AB215:AY215)>0,1,0)","v":0},"№213"]
["№214",null,null,null,null,null,null,null,null,null,null,null,null,null,null,null,null,null,null,null,null,null,null,null,null,{"$f":"IF(SUM(AB216:AY216)>0,1,0)","v":0},"№214"]
["№215",null,null,null,null,null,null,null,null,null,null,null,null,null,null,null,null,null,null,null,null,null,null,null,null,{"$f":"IF(SUM(AB217:AY217)>0,1,0)","v":0},"№215"]
["№216",null,null,null,null,null,null,null,null,null,null,null,null,null,null,null,null,null,null,null,null,null,null,null,null,{"$f":"IF(SUM(AB218:AY218)>0,1,0)","v":0},"№216"]
["№217",null,null,null,null,null,null,null,null,null,null,null,null,null,null,null,null,null,null,null,null,null,null,null,null,{"$f":"IF(SUM(AB219:AY219)>0,1,0)","v":0},"№217"]
["№218",null,null,null,null,null,null,null,null,null,null,null,null,null,null,null,null,null,null,null,null,null,null,null,null,{"$f":"IF(SUM(AB220:AY220)>0,1,0)","v":0},"№218"]
["№219",null,null,null,null,null,null,null,null,null,null,null,null,null,null,null,null,null,null,null,null,null,null,null,null,{"$f":"IF(SUM(AB221:AY221)>0,1,0)","v":0},"№219"]
["№220",null,null,null,null,null,null,null,null,null,null,null,null,null,null,null,null,null,null,null,null,null,null,null,null,{"$f":"IF(SUM(AB222:AY222)>0,1,0)","v":0},"№220"]
["№221",null,null,null,null,null,null,null,null,null,null,null,null,null,null,null,null,null,null,null,null,null,null,null,null,{"$f":"IF(SUM(AB223:AY223)>0,1,0)","v":0},"№221"]
["№222",null,null,null,null,null,null,null,null,null,null,null,null,null,null,null,null,null,null,null,null,null,null,null,null,{"$f":"IF(SUM(AB224:AY224)>0,1,0)","v":0},"№222"]
["№223",null,null,null,null,null,null,null,null,null,null,null,null,null,null,null,null,null,null,null,null,null,null,null,null,{"$f":"IF(SUM(AB225:AY225)>0,1,0)","v":0},"№223"]
["№224",null,null,null,null,null,null,null,null,null,null,null,null,null,null,null,null,null,null,null,null,null,null,null,null,{"$f":"IF(SUM(AB226:AY226)>0,1,0)","v":0},"№224"]
["№225",null,null,null,null,null,null,null,null,null,null,null,null,null,null,null,null,null,null,null,null,null,null,null,null,{"$f":"IF(SUM(AB227:AY227)>0,1,0)","v":0},"№225"]
["№226",null,null,null,null,null,null,null,null,null,null,null,null,null,null,null,null,null,null,null,null,null,null,null,null,{"$f":"IF(SUM(AB228:AY228)>0,1,0)","v":0},"№226"]
["№227",null,null,null,null,null,null,null,null,null,null,null,null,null,null,null,null,null,null,null,null,null,null,null,null,{"$f":"IF(SUM(AB229:AY229)>0,1,0)","v":0},"№227"]
["№228",null,null,null,null,null,null,null,null,null,null,null,null,null,null,null,null,null,null,null,null,null,null,null,null,{"$f":"IF(SUM(AB230:AY230)>0,1,0)","v":0},"№228"]
["№229",null,null,null,null,null,null,null,null,null,null,null,null,null,null,null,null,null,null,null,null,null,null,null,null,{"$f":"IF(SUM(AB231:AY231)>0,1,0)","v":0},"№229"]
["№230",null,null,null,null,null,null,null,null,null,null,null,null,null,null,null,null,null,null,null,null,null,null,null,null,{"$f":"IF(SUM(AB232:AY232)>0,1,0)","v":1},"№230",null,null,null,null,null,null,null,null,null,null,null,23,null,null,null,null,null,null,null,null,null,null,null,27]
["№231",null,null,null,null,null,null,null,null,null,null,null,null,null,null,null,null,null,null,null,null,null,null,null,null,{"$f":"IF(SUM(AB233:AY233)>0,1,0)","v":0},"№231"]
["№232",null,null,null,null,null,null,null,null,null,null,null,null,null,null,null,null,null,null,null,null,null,null,null,null,{"$f":"IF(SUM(AB234:AY234)>0,1,0)","v":0},"№232"]
["№233",null,null,null,null,null,null,null,null,null,null,null,null,null,null,null,null,null,null,null,null,null,null,null,null,{"$f":"IF(SUM(AB235:AY235)>0,1,0)","v":0},"№233"]
["№234",null,null,null,null,null,null,null,null,null,null,null,null,null,null,null,null,null,null,null,null,null,null,null,null,{"$f":"IF(SUM(AB236:AY236)>0,1,0)","v":0},"№234"]
["№235",null,null,null,null,null,null,null,null,null,null,null,null,null,null,null,null,null,null,null,null,null,null,null,null,{"$f":"IF(SUM(AB237:AY237)>0,1,0)","v":0},"№235"]
["№236",null,null,null,null,null,null,null,null,null,null,null,null,null,null,null,null,null,null,null,null,null,null,null,null,{"$f":"IF(SUM(AB238:AY238)>0,1,0)","v":0},"№236"]
["№237",null,null,null,null,null,null,null,null,null,null,null,null,null,null,null,null,null,null,null,null,null,null,null,null,{"$f":"IF(SUM(AB239:AY239)>0,1,0)","v":0},"№237"]
["№238",null,null,null,null,null,null,null,null,null,null,null,null,null,null,null,null,null,null,null,null,null,null,null,null,{"$f":"IF(SUM(AB240:AY240)>0,1,0)","v":0},"№238"]
["№239",null,null,null,null,null,null,null,null,null,null,null,null,null,null,null,null,null,null,null,null,null,null,null,null,{"$f":"IF(SUM(AB241:AY241)>0,1,0)","v":0},"№239"]
["№240",null,null,null,null,null,null,null,null,null,null,null,null,null,null,null,null,null,null,null,null,null,null,null,null,{"$f":"IF(SUM(AB242:AY242)>0,1,0)","v":0},"№240"]
["№241",null,null,null,null,null,null,null,null,null,null,null,null,null,null,null,null,null,null,null,null,null,null,null,null,{"$f":"IF(SUM(AB243:AY243)>0,1,0)","v":0},"№241"]
["№242",null,null,null,null,null,null,null,null,null,null,null,null,null,null,null,null,null,null,null,null,null,null,null,null,{"$f":"IF(SUM(AB244:AY244)>0,1,0)","v":0},"№242"]
["№243",null,null,null,null,null,null,null,null,null,null,null,null,null,null,null,null,null,null,null,null,null,null,null,null,{"$f":"IF(SUM(AB245:AY245)>0,1,0)","v":0},"№243"]
["№244",null,null,null,null,null,null,null,null,null,null,null,null,null,null,null,null,null,null,null,null,null,null,null,null,{"$f":"IF(SUM(AB246:AY246)>0,1,0)","v":0},"№244"]
["№245",null,null,null,null,null,null,null,null,null,null,null,null,null,null,null,null,null,null,null,null,null,null,null,null,{"$f":"IF(SUM(AB247:AY247)>0,1,0)","v":0},"№245"]
["№246",null,null,null,null,null,null,null,null,null,null,null,null,null,null,null,null,null,null,null,null,null,null,null,null,{"$f":"IF(SUM(AB248:AY248)>0,1,0)","v":0},"№246"]
["№247",null,null,null,null,null,null,null,null,null,null,null,null,null,null,null,null,null,null,null,null,null,null,null,null,{"$f":"IF(SUM(AB249:AY249)>0,1,0)","v":0},"№247"]
["№248",null,null,null,null,null,null,null,null,null,null,null,null,null,null,null,null,null,null,null,null,null,null,null,null,{"$f":"IF(SUM(AB250:AY250)>0,1,0)","v":0},"№248"]
["№249",null,null,null,null,null,null,null,null,null,null,null,null,null,null,null,null,null,null,null,null,null,null,null,null,{"$f":"IF(SUM(AB251:AY251)>0,1,0)","v":0},"№249"]
["№250",null,null,null,null,null,null,null,null,null,null,null,null,null,null,null,null,null,null,null,null,null,null,null,null,{"$f":"IF(SUM(AB252:AY252)>0,1,0)","v":0},"№250"]
["№251",null,null,null,null,null,null,null,null,null,null,null,null,null,null,null,null,null,null,null,null,null,null,null,null,{"$f":"IF(SUM(AB253:AY253)>0,1,0)","v":0},"№251"]
["№252",null,null,null,null,null,null,null,null,null,null,null,null,null,null,null,null,null,null,null,null,null,null,null,null,{"$f":"IF(SUM(AB254:AY254)>0,1,0)","v":0},"№252"]
["№253",null,null,null,null,null,null,null,null,null,null,null,null,null,null,null,null,null,null,null,null,null,null,null,null,{"$f":"IF(SUM(AB255:AY255)>0,1,0)","v":1},"№253",null,null,null,null,null,null,null,null,null,null,null,19,null,null,null,null,null,null,null,null,null,null,null,23]
["№254",null,null,null,null,null,null,null,null,null,null,null,null,null,null,null,null,null,null,null,null,null,null,null,null,{"$f":"IF(SUM(AB256:AY256)>0,1,0)","v":1},"№254",21,25,29,33,37,41,45,49,53,57,61,1]
["№255",null,null,null,null,null,null,null,null,null,null,null,null,null,null,null,null,null,null,null,null,null,null,null,null,{"$f":"IF(SUM(AB257:AY257)>0,1,0)","v":0},"№255"]
["№256",null,null,null,null,null,null,null,null,null,null,null,null,null,null,null,null,null,null,null,null,null,null,null,null,{"$f":"IF(SUM(AB258:AY258)>0,1,0)","v":0},"№256"]
["№257",null,null,null,null,null,null,null,null,null,null,null,null,null,null,null,null,null,null,null,null,null,null,null,null,{"$f":"IF(SUM(AB259:AY259)>0,1,0)","v":1},"№257",3,3,3,3,3,3,3,3,3,3,3,3,null,28,32,36,40,44,48,52,56,60,64,4]
["№258",null,null,null,null,null,null,null,null,null,null,null,null,null,null,null,null,null,null,null,null,null,null,null,null,{"$f":"IF(SUM(AB260:AY260)>0,1,0)","v":1},"№258",1,1,1,1,1,1,1,1,1,1,1,1,null,1,1,1,1,1,1,1,1,1,1,1]
["№259",null,null,null,null,null,null,null,null,null,null,null,null,null,null,null,null,null,null,null,null,null,null,null,null,{"$f":"IF(SUM(AB261:AY261)>0,1,0)","v":0},"№259"]
["№260",null,null,null,null,null,null,null,null,null,null,null,null,null,null,null,null,null,null,null,null,null,null,null,null,{"$f":"IF(SUM(AB262:AY262)>0,1,0)","v":0},"№260"]
["№261",null,null,null,null,null,null,null,null,null,null,null,null,null,null,null,null,null,null,null,null,null,null,null,null,{"$f":"IF(SUM(AB263:AY263)>0,1,0)","v":0},"№261"]
["№262",null,null,null,null,null,null,null,null,null,null,null,null,null,null,null,null,null,null,null,null,null,null,null,null,{"$f":"IF(SUM(AB264:AY264)>0,1,0)","v":0},"№262"]
["№263",null,null,null,null,null,null,null,null,null,null,null,null,null,null,null,null,null,null,null,null,null,null,null,null,{"$f":"IF(SUM(AB265:AY265)>0,1,0)","v":0},"№263"]
["№264",null,null,null,null,null,null,null,null,null,null,null,null,null,null,null,null,null,null,null,null,null,null,null,null,{"$f":"IF(SUM(AB266:AY266)>0,1,0)","v":0},"№264"]
["№265",null,null,null,null,null,null,null,null,null,null,null,null,null,null,null,null,null,null,null,null,null,null,null,null,{"$f":"IF(SUM(AB267:AY267)>0,1,0)","v":0},"№265"]
["№266",null,null,null,null,null,null,null,null,null,null,null,null,null,null,null,null,null,null,null,null,null,null,null,null,{"$f":"IF(SUM(AB268:AY268)>0,1,0)","v":0},"№266"]
["№267",null,null,null,null,null,null,null,null,null,null,null,null,null,null,null,null,null,null,null,null,null,null,null,null,{"$f":"IF(SUM(AB269:AY269)>0,1,0)","v":1},"№267",null,null,null,null,9,9,9,9,9,9,9,9,null,null,null,null,9,9,9,9,9,9,9,9]
["№268",null,null,null,null,null,null,null,null,null,null,null,null,null,null,null,null,null,null,null,null,null,null,null,null,{"$f":"IF(SUM(AB270:AY270)>0,1,0)","v":0},"№268"]
["№269",null,null,null,null,null,null,null,null,null,null,null,null,null,null,null,null,null,null,null,null,null,null,null,null,{"$f":"IF(SUM(AB271:AY271)>0,1,0)","v":0},"№269"]
["№270",null,null,null,null,null,null,null,null,null,null,null,null,null,null,null,null,null,null,null,null,null,null,null,null,{"$f":"IF(SUM(AB272:AY272)>0,1,0)","v":1},"№270",8,9,10,11,3,3,3,3,3,3,3,3,null,9,10,11,3,3,3,3,3,3,3,3]
["№271",null,null,null,null,null,null,null,null,null,null,null,null,null,null,null,null,null,null,null,null,null,null,null,null,{"$f":"IF(SUM(AB273:AY273)>0,1,0)","v":0},"№271"]
["№272",null,null,null,null,null,null,null,null,null,null,null,null,null,null,null,null,null,null,null,null,null,null,null,null,{"$f":"IF(SUM(AB274:AY274)>0,1,0)","v":0},"№272"]
["№273",null,null,null,null,null,null,null,null,null,null,null,null,null,null,null,null,null,null,null,null,null,null,null,null,{"$f":"IF(SUM(AB275:AY275)>0,1,0)","v":0},"№273"]
["№274",null,null,null,null,null,null,null,null,null,null,null,null,null,null,null,null,null,null,null,null,null,null,null,null,{"$f":"IF(SUM(AB276:AY276)>0,1,0)","v":0},"№274"]
["№275",null,null,null,null,null,null,null,null,null,null,null,null,null,null,null,null,null,null,null,null,null,null,null,null,{"$f":"IF(SUM(AB277:AY277)>0,1,0)","v":0},"№275"]
["№276",null,null,null,null,null,null,null,null,null,null,null,null,null,null,null,null,null,null,null,null,null,null,null,null,{"$f":"IF(SUM(AB278:AY278)>0,1,0)","v":0},"№276"]
["№277",null,null,null,null,null,null,null,null,null,null,null,null,null,null,null,null,null,null,null,null,null,null,null,null,{"$f":"IF(SUM(AB279:AY279)>0,1,0)","v":0},"№277"]
["№278",null,null,null,null,null,null,null,null,null,null,null,null,null,null,null,null,null,null,null,null,null,null,null,null,{"$f":"IF(SUM(AB280:AY280)>0,1,0)","v":0},"№278"]
["№279",null,null,null,null,null,null,null,null,null,null,null,null,null,null,null,null,null,null,null,null,null,null,null,null,{"$f":"IF(SUM(AB281:AY281)>0,1,0)","v":0},"№279"]
["№280",null,null,null,null,null,null,null,null,null,null,null,null,null,null,null,null,null,null,null,null,null,null,null,null,{"$f":"IF(SUM(AB282:AY282)>0,1,0)","v":0},"№280"]
["№281",null,null,null,null,null,null,null,null,null,null,null,null,null,null,null,null,null,null,null,null,null,null,null,null,{"$f":"IF(SUM(AB283:AY283)>0,1,0)","v":0},"№281"]
["№282",null,null,null,null,null,null,null,null,null,null,null,null,null,null,null,null,null,null,null,null,null,null,null,null,{"$f":"IF(SUM(AB284:AY284)>0,1,0)","v":0},"№282"]
["№283",null,null,null,null,null,null,null,null,null,null,null,null,null,null,null,null,null,null,null,null,null,null,null,null,{"$f":"IF(SUM(AB285:AY285)>0,1,0)","v":0},"№283"]
["№284",null,null,null,null,null,null,null,null,null,null,null,null,null,null,null,null,null,null,null,null,null,null,null,null,{"$f":"IF(SUM(AB286:AY286)>0,1,0)","v":0},"№284"]
["№285",null,null,null,null,null,null,null,null,null,null,null,null,null,null,null,null,null,null,null,null,null,null,null,null,{"$f":"IF(SUM(AB287:AY287)>0,1,0)","v":0},"№285"]
["№286",null,null,null,null,null,null,null,null,null,null,null,null,null,null,null,null,null,null,null,null,null,null,null,null,{"$f":"IF(SUM(AB288:AY288)>0,1,0)","v":0},"№286"]
["№287",null,null,null,null,null,null,null,null,null,null,null,null,null,null,null,null,null,null,null,null,null,null,null,null,{"$f":"IF(SUM(AB289:AY289)>0,1,0)","v":0},"№287"]
["№288",null,null,null,null,null,null,null,null,null,null,null,null,null,null,null,null,null,null,null,null,null,null,null,null,{"$f":"IF(SUM(AB290:AY290)>0,1,0)","v":0},"№288"]
["№289",null,null,null,null,null,null,null,null,null,null,null,null,null,null,null,null,null,null,null,null,null,null,null,null,{"$f":"IF(SUM(AB291:AY291)>0,1,0)","v":0},"№289"]
["№290",null,null,null,null,null,null,null,null,null,null,null,null,null,null,null,null,null,null,null,null,null,null,null,null,{"$f":"IF(SUM(AB292:AY292)>0,1,0)","v":1},"№290",null,null,null,null,null,null,null,null,null,null,null,18,null,null,null,null,null,null,null,null,null,null,null,20]
["№291",null,null,null,null,null,null,null,null,null,null,null,null,null,null,null,null,null,null,null,null,null,null,null,null,{"$f":"IF(SUM(AB293:AY293)>0,1,0)","v":0},"№291"]
["№292",null,null,null,null,null,null,null,null,null,null,null,null,null,null,null,null,null,null,null,null,null,null,null,null,{"$f":"IF(SUM(AB294:AY294)>0,1,0)","v":0},"№292"]
["№293",null,null,null,null,null,null,null,null,null,null,null,null,null,null,null,null,null,null,null,null,null,null,null,null,{"$f":"IF(SUM(AB295:AY295)>0,1,0)","v":0},"№293"]
["№294",null,null,null,null,null,null,null,null,null,null,null,null,null,null,null,null,null,null,null,null,null,null,null,null,{"$f":"IF(SUM(AB296:AY296)>0,1,0)","v":0},"№294"]
["№295",null,null,null,null,null,null,null,null,null,null,null,null,null,null,null,null,null,null,null,null,null,null,null,null,{"$f":"IF(SUM(AB297:AY297)>0,1,0)","v":0},"№295"]
["№296",null,null,null,null,null,null,null,null,null,null,null,null,null,null,null,null,null,null,null,null,null,null,null,null,{"$f":"IF(SUM(AB298:AY298)>0,1,0)","v":0},"№296"]
["№297",null,null,null,null,null,null,null,null,null,null,null,null,null,null,null,null,null,null,null,null,null,null,null,null,{"$f":"IF(SUM(AB299:AY299)>0,1,0)","v":0},"№297"]
["№298",null,null,null,null,null,null,null,null,null,null,null,null,null,null,null,null,null,null,null,null,null,null,null,null,{"$f":"IF(SUM(AB300:AY300)>0,1,0)","v":1},"№298",null,null,null,16,17,18,19,20,21,22,23,8,null,null,null,16,17,18,19,20,21,22,23,8]
["№299",null,null,null,null,null,null,null,null,null,null,null,null,null,null,null,null,null,null,null,null,null,null,null,null,{"$f":"IF(SUM(AB301:AY301)>0,1,0)","v":0},"№299"]
["№300",null,null,null,null,null,null,null,null,null,null,null,null,null,null,null,null,null,null,null,null,null,null,null,null,{"$f":"IF(SUM(AB302:AY302)>0,1,0)","v":0},"№300"]
["№301",null,null,null,null,null,null,null,null,null,null,null,null,null,null,null,null,null,null,null,null,null,null,null,null,{"$f":"IF(SUM(AB303:AY303)>0,1,0)","v":0},"№301"]
["№302",null,null,null,null,null,null,null,null,null,null,null,null,null,null,null,null,null,null,null,null,null,null,null,null,{"$f":"IF(SUM(AB304:AY304)>0,1,0)","v":0},"№302"]
["№303",null,null,null,null,null,null,null,null,null,null,null,null,null,null,null,null,null,null,null,null,null,null,null,null,{"$f":"IF(SUM(AB305:AY305)>0,1,0)","v":0},"№303"]
["№304",null,null,null,null,null,null,null,null,null,null,null,null,null,null,null,null,null,null,null,null,null,null,null,null,{"$f":"IF(SUM(AB306:AY306)>0,1,0)","v":0},"№304"]
["№305",null,null,null,null,null,null,null,null,null,null,null,null,null,null,null,null,null,null,null,null,null,null,null,null,{"$f":"IF(SUM(AB307:AY307)>0,1,0)","v":0},"№305"]
["№306",null,null,null,null,null,null,null,null,null,null,null,null,null,null,null,null,null,null,null,null,null,null,null,null,{"$f":"IF(SUM(AB308:AY308)>0,1,0)","v":0},"№306"]
["№307",null,null,null,null,null,null,null,null,null,null,null,null,null,null,null,null,null,null,null,null,null,null,null,null,{"$f":"IF(SUM(AB309:AY309)>0,1,0)","v":0},"№307"]
["№308",null,null,null,null,null,null,null,null,null,null,null,null,null,null,null,null,null,null,null,null,null,null,null,null,{"$f":"IF(SUM(AB310:AY310)>0,1,0)","v":0},"№308"]
["№309",null,null,null,null,null,null,null,null,null,null,null,null,null,null,null,null,null,null,null,null,null,null,null,null,{"$f":"IF(SUM(AB311:AY311)>0,1,0)","v":0},"№309"]
["№310",null,null,null,null,null,null,null,null,null,null,null,null,null,null,null,null,null,null,null,null,null,null,null,null,{"$f":"IF(SUM(AB312:AY312)>0,1,0)","v":0},"№310"]
["№311",null,null,null,null,null,null,null,null,null,null,null,null,null,null,null,null,null,null,null,null,null,null,null,null,{"$f":"IF(SUM(AB313:AY313)>0,1,0)","v":0},"№311"]
["№312",null,null,null,null,null,null,null,null,null,null,null,null,null,null,null,null,null,null,null,null,null,null,null,null,{"$f":"IF(SUM(AB314:AY314)>0,1,0)","v":0},"№312"]
["№313",null,null,null,null,null,null,null,null,null,null,null,null,null,null,null,null,null,null,null,null,null,null,null,null,{"$f":"IF(SUM(AB315:AY315)>0,1,0)","v":0},"№313"]
["№314",null,null,null,null,null,null,null,null,null,null,null,null,null,null,null,null,null,null,null,null,null,null,null,null,{"$f":"IF(SUM(AB316:AY316)>0,1,0)","v":0},"№314"]
["№315",null,null,null,null,null,null,null,null,null,null,null,null,null,null,null,null,null,null,null,null,null,null,null,null,{"$f":"IF(SUM(AB317:AY317)>0,1,0)","v":0},"№315"]
["№316",null,null,null,null,null,null,null,null,null,null,null,null,null,null,null,null,null,null,null,null,null,null,null,null,{"$f":"IF(SUM(AB318:AY318)>0,1,0)","v":0},"№316"]
["№317",null,null,null,null,null,null,null,null,null,null,null,null,null,null,null,null,null,null,null,null,null,null,null,null,{"$f":"IF(SUM(AB319:AY319)>0,1,0)","v":0},"№317"]
["№318",null,null,null,null,null,null,null,null,null,null,null,null,null,null,null,null,null,null,null,null,null,null,null,null,{"$f":"IF(SUM(AB320:AY320)>0,1,0)","v":1},"№318",null,null,null,null,null,null,null,null,null,null,null,17,null,null,null,null,null,null,null,null,null,null,null,20]
["№319",null,null,null,null,null,null,null,null,null,null,null,null,null,null,null,null,null,null,null,null,null,null,null,null,{"$f":"IF(SUM(AB321:AY321)>0,1,0)","v":1},"№319",16,19,22,9,10,11,12,13,14,15,16,1]
["№320",null,null,null,null,null,null,null,null,null,null,null,null,null,null,null,null,null,null,null,null,null,null,null,null,{"$f":"IF(SUM(AB322:AY322)>0,1,0)","v":0},"№320"]
["№321",null,null,null,null,null,null,null,null,null,null,null,null,null,null,null,null,null,null,null,null,null,null,null,null,{"$f":"IF(SUM(AB323:AY323)>0,1,0)","v":0},"№321"]
["№322",null,null,null,null,null,null,null,null,null,null,null,null,null,null,null,null,null,null,null,null,null,null,null,null,{"$f":"IF(SUM(AB324:AY324)>0,1,0)","v":0},"№322"]
["№323",null,null,null,null,null,null,null,null,null,null,null,null,null,null,null,null,null,null,null,null,null,null,null,null,{"$f":"IF(SUM(AB325:AY325)>0,1,0)","v":0},"№323"]
["№324",null,null,null,null,null,null,null,null,null,null,null,null,null,null,null,null,null,null,null,null,null,null,null,null,{"$f":"IF(SUM(AB326:AY326)>0,1,0)","v":0},"№324"]
["№325",null,null,null,null,null,null,null,null,null,null,null,null,null,null,null,null,null,null,null,null,null,null,null,null,{"$f":"IF(SUM(AB327:AY327)>0,1,0)","v":0},"№325"]
["№326",null,null,null,null,null,null,null,null,null,null,null,null,null,null,null,null,null,null,null,null,null,null,null,null,{"$f":"IF(SUM(AB328:AY328)>0,1,0)","v":0},"№326"]
["№327",null,null,null,null,null,null,null,null,null,null,null,null,null,null,null,null,null,null,null,null,null,null,null,null,{"$f":"IF(SUM(AB329:AY329)>0,1,0)","v":0},"№327"]
["№328",null,null,null,null,null,null,null,null,null,null,null,null,null,null,null,null,null,null,null,null,null,null,null,null,{"$f":"IF(SUM(AB330:AY330)>0,1,0)","v":0},"№328"]
["№329",null,null,null,null,null,null,null,null,null,null,null,null,null,null,null,null,null,null,null,null,null,null,null,null,{"$f":"IF(SUM(AB331:AY331)>0,1,0)","v":0},"№329"]
["№330",null,null,null,null,null,null,null,null,null,null,null,null,null,null,null,null,null,null,null,null,null,null,null,null,{"$f":"IF(SUM(AB332:AY332)>0,1,0)","v":0},"№330"]
["№331",null,null,null,null,null,null,null,null,null,null,null,null,null,null,null,null,null,null,null,null,null,null,null,null,{"$f":"IF(SUM(AB333:AY333)>0,1,0)","v":0},"№331"]
["№332",null,null,null,null,null,null,null,null,null,null,null,null,null,null,null,null,null,null,null,null,null,null,null,null,{"$f":"IF(SUM(AB334:AY334)>0,1,0)","v":0},"№332"]
["№333",null,null,null,null,null,null,null,null,null,null,null,null,null,null,null,null,null,null,null,null,null,null,null,null,{"$f":"IF(SUM(AB335:AY335)>0,1,0)","v":0},"№333"]
["№334",null,null,null,null,null,null,null,null,null,null,null,null,null,null,null,null,null,null,null,null,null,null,null,null,{"$f":"IF(SUM(AB336:AY336)>0,1,0)","v":0},"№334"]
["№335",null,null,null,null,null,null,null,null,null,null,null,null,null,null,null,null,null,null,null,null,null,null,null,null,{"$f":"IF(SUM(AB337:AY337)>0,1,0)","v":1},"№335",null,null,null,null,null,null,null,null,13,13,13,13,null,null,null,null,null,null,null,null,null,null,null,17]
["№336",null,null,null,null,null,null,null,null,null,null,null,null,null,null,null,null,null,null,null,null,null,null,null,null,{"$f":"IF(SUM(AB338:AY338)>0,1,0)","v":0},"№336"]
["№337",null,null,null,null,null,null,null,null,null,null,null,null,null,null,null,null,null,null,null,null,null,null,null,null,{"$f":"IF(SUM(AB339:AY339)>0,1,0)","v":0},"№337"]
["№338",null,null,null,null,null,null,null,null,null,null,null,null,null,null,null,null,null,null,null,null,null,null,null,null,{"$f":"IF(SUM(AB340:AY340)>0,1,0)","v":0},"№338"]
["№339",null,null,null,null,null,null,null,null,null,null,null,null,null,null,null,null,null,null,null,null,null,null,null,null,{"$f":"IF(SUM(AB341:AY341)>0,1,0)","v":0},"№339"]
["№340",null,null,null,null,null,null,null,null,null,null,null,null,null,null,null,null,null,null,null,null,null,null,null,null,{"$f":"IF(SUM(AB342:AY342)>0,1,0)","v":0},"№340"]
["№341",null,null,null,null,null,null,null,null,null,null,null,null,null,null,null,null,null,null,null,null,null,null,null,null,{"$f":"IF(SUM(AB343:AY343)>0,1,0)","v":0},"№341"]
["№342",null,null,null,null,null,null,null,null,null,null,null,null,null,null,null,null,null,null,null,null,null,null,null,null,{"$f":"IF(SUM(AB344:AY344)>0,1,0)","v":0},"№342"]
["№343",null,null,null,null,null,null,null,null,null,null,null,null,null,null,null,null,null,null,null,null,null,null,null,null,{"$f":"IF(SUM(AB345:AY345)>0,1,0)","v":1},"№343",null,null,null,16,17,18,19,20,8,8,8,8,null,null,null,24,26,28,30,32,34,36,38,8]
["№344",null,null,null,null,null,null,null,null,null,null,null,null,null,null,null,null,null,null,null,null,null,null,null,null,{"$f":"IF(SUM(AB346:AY346)>0,1,0)","v":0},"№344"]
["№345",null,null,null,null,null,null,null,null,null,null,null,null,null,null,null,null,null,null,null,null,null,null,null,null,{"$f":"IF(SUM(AB347:AY347)>0,1,0)","v":0},"№345"]
["№346",null,null,null,null,null,null,null,null,null,null,null,null,null,null,null,null,null,null,null,null,null,null,null,null,{"$f":"IF(SUM(AB348:AY348)>0,1,0)","v":0},"№346"]
["№347",null,null,null,null,null,null,null,null,null,null,null,null,null,null,null,null,null,null,null,null,null,null,null,null,{"$f":"IF(SUM(AB349:AY349)>0,1,0)","v":0},"№347"]
["№348",null,null,null,null,null,null,null,null,null,null,null,null,null,null,null,null,null,null,null,null,null,null,null,null,{"$f":"IF(SUM(AB350:AY350)>0,1,0)","v":0},"№348"]
["№349",null,null,null,null,null,null,null,null,null,null,null,null,null,null,null,null,null,null,null,null,null,null,null,null,{"$f":"IF(SUM(AB351:AY351)>0,1,0)","v":0},"№349"]
["№350",null,null,null,null,null,null,null,null,null,null,null,null,null,null,null,null,null,null,null,null,null,null,null,null,{"$f":"IF(SUM(AB352:AY352)>0,1,0)","v":0},"№350"]
["№351",null,null,null,null,null,null,null,null,null,null,null,null,null,null,null,null,null,null,null,null,null,null,null,null,{"$f":"IF(SUM(AB353:AY353)>0,1,0)","v":1},"№351",15,17,19,5,5,5,5,5,5,5,5,5,null,null,null,8,8,8,8,8,8,8,8,8]
["№352",null,null,null,null,null,null,null,null,null,null,null,null,null,null,null,null,null,null,null,null,null,null,null,null,{"$f":"IF(SUM(AB354:AY354)>0,1,0)","v":0},"№352"]
["№353",null,null,null,null,null,null,null,null,null,null,null,null,null,null,null,null,null,null,null,null,null,null,null,null,{"$f":"IF(SUM(AB355:AY355)>0,1,0)","v":0},"№353"]
["№354",null,null,null,null,null,null,null,null,null,null,null,null,null,null,null,null,null,null,null,null,null,null,null,null,{"$f":"IF(SUM(AB356:AY356)>0,1,0)","v":0},"№354"]
["№355",null,null,null,null,null,null,null,null,null,null,null,null,null,null,null,null,null,null,null,null,null,null,null,null,{"$f":"IF(SUM(AB357:AY357)>0,1,0)","v":0},"№355"]
["№356",null,null,null,null,null,null,null,null,null,null,null,null,null,null,null,null,null,null,null,null,null,null,null,null,{"$f":"IF(SUM(AB358:AY358)>0,1,0)","v":0},"№356"]
["№357",null,null,null,null,null,null,null,null,null,null,null,null,null,null,null,null,null,null,null,null,null,null,null,null,{"$f":"IF(SUM(AB359:AY359)>0,1,0)","v":0},"№357"]
["№358",null,null,null,null,null,null,null,null,null,null,null,null,null,null,null,null,null,null,null,null,null,null,null,null,{"$f":"IF(SUM(AB360:AY360)>0,1,0)","v":0},"№358"]
["№359",null,null,null,null,null,null,null,null,null,null,null,null,null,null,null,null,null,null,null,null,null,null,null,null,{"$f":"IF(SUM(AB361:AY361)>0,1,0)","v":0},"№359"]
["№360",null,null,null,null,null,null,null,null,null,null,null,null,null,null,null,null,null,null,null,null,null,null,null,null,{"$f":"IF(SUM(AB362:AY362)>0,1,0)","v":0},"№360"]
["№361",null,null,null,null,null,null,null,null,null,null,null,null,null,null,null,null,null,null,null,null,null,null,null,null,{"$f":"IF(SUM(AB363:AY363)>0,1,0)","v":0},"№361"]
["№362",null,null,null,null,null,null,null,null,null,null,null,null,null,null,null,null,null,null,null,null,null,null,null,null,{"$f":"IF(SUM(AB364:AY364)>0,1,0)","v":0},"№362"]
["№363",null,null,null,null,null,null,null,null,null,null,null,null,null,null,null,null,null,null,null,null,null,null,null,null,{"$f":"IF(SUM(AB365:AY365)>0,1,0)","v":0},"№363"]
["№364",null,null,null,null,null,null,null,null,null,null,null,null,null,null,null,null,null,null,null,null,null,null,null,null,{"$f":"IF(SUM(AB366:AY366)>0,1,0)","v":0},"№364"]
["№365",null,null,null,null,null,null,null,null,null,null,null,null,null,null,null,null,null,null,null,null,null,null,null,null,{"$f":"IF(SUM(AB367:AY367)>0,1,0)","v":0},"№365"]
["№366",null,null,null,null,null,null,null,null,null,null,null,null,null,null,null,null,null,null,null,null,null,null,null,null,{"$f":"IF(SUM(AB368:AY368)>0,1,0)","v":0},"№366"]
["№367",null,null,null,null,null,null,null,null,null,null,null,null,null,null,null,null,null,null,null,null,null,null,null,null,{"$f":"IF(SUM(AB369:AY369)>0,1,0)","v":0},"№367"]
["№368",null,null,null,null,null,null,null,null,null,null,null,null,null,null,null,null,null,null,null,null,null,null,null,null,{"$f":"IF(SUM(AB370:AY370)>0,1,0)","v":0},"№368"]
["№369",null,null,null,null,null,null,null,null,null,null,null,null,null,null,null,null,null,null,null,null,null,null,null,null,{"$f":"IF(SUM(AB371:AY371)>0,1,0)","v":1},"№369",null,null,null,null,null,null,null,null,null,null,15,15,null,null,null,null,null,null,null,null,null,null,null,18]
["№370",null,null,null,null,null,null,null,null,null,null,null,null,null,null,null,null,null,null,null,null,null,null,null,null,{"$f":"IF(SUM(AB372:AY372)>0,1,0)","v":1},"№370",6,7,8,9,10,11,12,13,14,15,1,1]
["№371",null,null,null,null,null,null,null,null,null,null,null,null,null,null,null,null,null,null,null,null,null,null,null,null,{"$f":"IF(SUM(AB373:AY373)>0,1,0)","v":0},"№371"]
["№372",null,null,null,null,null,null,null,null,null,null,null,null,null,null,null,null,null,null,null,null,null,null,null,null,{"$f":"IF(SUM(AB374:AY374)>0,1,0)","v":0},"№372"]
["№373",null,null,null,null,null,null,null,null,null,null,null,null,null,null,null,null,null,null,null,null,null,null,null,null,{"$f":"IF(SUM(AB375:AY375)>0,1,0)","v":0},"№373"]
["№374",null,null,null,null,null,null,null,null,null,null,null,null,null,null,null,null,null,null,null,null,null,null,null,null,{"$f":"IF(SUM(AB376:AY376)>0,1,0)","v":0},"№374"]
["№375",null,null,null,null,null,null,null,null,null,null,null,null,null,null,null,null,null,null,null,null,null,null,null,null,{"$f":"IF(SUM(AB377:AY377)>0,1,0)","v":0},"№375"]
["№376",null,null,null,null,null,null,null,null,null,null,null,null,null,null,null,null,null,null,null,null,null,null,null,null,{"$f":"IF(SUM(AB378:AY378)>0,1,0)","v":0},"№376"]
["№377",null,null,null,null,null,null,null,null,null,null,null,null,null,null,null,null,null,null,null,null,null,null,null,null,{"$f":"IF(SUM(AB379:AY379)>0,1,0)","v":0},"№377"]
["№378",null,null,null,null,null,null,null,null,null,null,null,null,null,null,null,null,null,null,null,null,null,null,null,null,{"$f":"IF(SUM(AB380:AY380)>0,1,0)","v":0},"№378"]
["№379",null,null,null,null,null,null,null,null,null,null,null,null,null,null,null,null,null,null,null,null,null,null,null,null,{"$f":"IF(SUM(AB381:AY381)>0,1,0)","v":0},"№379"]
["№380",null,null,null,null,null,null,null,null,null,null,null,null,null,null,null,null,null,null,null,null,null,null,null,null,{"$f":"IF(SUM(AB382:AY382)>0,1,0)","v":0},"№380"]
["№381",null,null,null,null,null,null,null,null,null,null,null,null,null,null,null,null,null,null,null,null,null,null,null,null,{"$f":"IF(SUM(AB383:AY383)>0,1,0)","v":0},"№381"]
["№382",null,null,null,null,null,null,null,null,null,null,null,null,null,null,null,null,null,null,null,null,null,null,null,null,{"$f":"IF(SUM(AB384:AY384)>0,1,0)","v":1},"№382",4,4,4,4,4,4,4,4,4,4,5,8,null,1,1,1,1,1,1,1,1,1,1,1]
["№383",null,null,null,null,null,null,null,null,null,null,null,null,null,null,null,null,null,null,null,null,null,null,null,null,{"$f":"IF(SUM(AB385:AY385)>0,1,0)","v":1},"№383",1,1,1,1,1,1,1,1,1,1,1,1]
["№384",null,null,null,null,null,null,null,null,null,null,null,null,null,null,null,null,null,null,null,null,null,null,null,null,{"$f":"IF(SUM(AB386:AY386)>0,1,0)","v":1},"№384",1,1,1,1,2,2,2,2,2,2,2,2,null,null,null,null,1,1,1,1,1,1,1,2]
["№385",null,null,null,null,null,null,null,null,null,null,null,null,null,null,null,null,null,null,null,null,null,null,null,null,{"$f":"IF(SUM(AB387:AY387)>0,1,0)","v":1},"№385",null,null,null,null,null,null,null,null,null,null,1,1,null,null,null,null,null,null,null,null,null,null,null,1]
["№386",null,null,null,null,null,null,null,null,null,null,null,null,null,null,null,null,null,null,null,null,null,null,null,null,{"$f":"IF(SUM(AB388:AY388)>0,1,0)","v":1},"№386",null,null,null,1,1,1,1,1,1,1,1,1]
["№387",null,null,null,null,null,null,null,null,null,null,null,null,null,null,null,null,null,null,null,null,null,null,null,null,{"$f":"IF(SUM(AB389:AY389)>0,1,0)","v":1},"№387",1,null,null,null,null,null,null,null,null,null,null,null,null,null,null,null,null,null,null,null,null,null,null,1]
["№388",null,null,null,null,null,null,null,null,null,null,null,null,null,null,null,null,null,null,null,null,null,null,null,null,{"$f":"IF(SUM(AB390:AY390)>0,1,0)","v":1},"№388",null,1]
["№389",null,null,null,null,null,null,null,null,null,null,null,null,null,null,null,null,null,null,null,null,null,null,null,null,{"$f":"IF(SUM(AB391:AY391)>0,1,0)","v":1},"№389",1,null,1,null,null,null,null,null,1,1,1,2,null,null,null,1,1,1,1,1,1,1,1,3]
["№390",null,null,null,null,null,null,null,null,null,null,null,null,null,null,null,null,null,null,null,null,null,null,null,null,{"$f":"IF(SUM(AB392:AY392)>0,1,0)","v":1},"№390",null,1,null,2,1,1,1,2,2,2,2,2,null,1,null,null,1,1,1,1,1,1,1,1]
["№391",null,null,null,null,null,null,null,null,null,null,null,null,null,null,null,null,null,null,null,null,null,null,null,null,{"$f":"IF(SUM(AB393:AY393)>0,1,0)","v":1},"№391",null,null,1,null,2,1,1,1,1,1,1,1,null,null,1,null,null,null,null,1,1,1,1,1]
["№392",null,null,null,null,null,null,null,null,null,null,null,null,null,null,null,null,null,null,null,null,null,null,null,null,{"$f":"IF(SUM(AB394:AY394)>0,1,0)","v":1},"№392",null,null,null,1,null,2,null,null,null,null,null,null,null,null,null,1]
["№393",null,null,null,null,null,null,null,null,null,null,null,null,null,null,null,null,null,null,null,null,null,null,null,null,{"$f":"IF(SUM(AB395:AY395)>0,1,0)","v":1},"№393",null,null,null,null,null,null,2,null,null,1,1,1,null,null,null,null,null,null,null,null,null,null,null,1]
["№394",null,null,null,null,null,null,null,null,null,null,null,null,null,null,null,null,null,null,null,null,null,null,null,null,{"$f":"IF(SUM(AB396:AY396)>0,1,0)","v":1},"№394",null,null,null,null,null,null,null,2,1,1,1,1]
["№395",null,null,null,null,null,null,null,null,null,null,null,null,null,null,null,null,null,null,null,null,null,null,null,null,{"$f":"IF(SUM(AB397:AY397)>0,1,0)","v":1},"№395",null,null,null,null,null,1,null,null,2,1,1,1]
["№396",null,null,null,null,null,null,null,null,null,null,null,null,null,null,null,null,null,null,null,null,null,null,null,null,{"$f":"IF(SUM(AB398:AY398)>0,1,0)","v":1},"№396",1,null,null,null,null,null,1,null,null,2,2,2,null,null,null,null,null,null,null,null,null,null,1,1]
["№397",null,null,null,null,null,null,null,null,null,null,null,null,null,null,null,null,null,null,null,null,null,null,null,null,{"$f":"IF(SUM(AB399:AY399)>0,1,0)","v":1},"№397",2,null,null,2,null,null,null,1,null,null,1,null,null,null,null,1]
["№398",null,null,null,null,null,null,null,null,null,null,null,null,null,null,null,null,null,null,null,null,null,null,null,null,{"$f":"IF(SUM(AB400:AY400)>0,1,0)","v":1},"№398",null,1,null,null,2,null,null,null,1,null,null,1,null,null,null,null,1,null,null,null,null,null,null,2]
["№399",null,null,null,null,null,null,null,null,null,null,null,null,null,null,null,null,null,null,null,null,null,null,null,null,{"$f":"IF(SUM(AB401:AY401)>0,1,0)","v":1},"№399",null,null,null,null,null,2,null,null,null,1,null,2,null,null,null,null,null,1,null,null,null,null,null,2]
["№400",null,null,null,null,null,null,null,null,null,null,null,null,null,null,null,null,null,null,null,null,null,null,null,null,{"$f":"IF(SUM(AB402:AY402)>0,1,0)","v":1},"№400",null,2,1,null,null,null,2,null,null,null,null,2,null,null,null,null,null,null,1,null,null,null,null,1]
["№401",null,null,null,null,null,null,null,null,null,null,null,null,null,null,null,null,null,null,null,null,null,null,null,null,{"$f":"IF(SUM(AB403:AY403)>0,1,0)","v":1},"№401",null,null,null,null,null,null,null,2,null,null,null,null,null,null,null,null,null,null,null,1,null,null,null,2]
["№402",null,null,null,null,null,null,null,null,null,null,null,null,null,null,null,null,null,null,null,null,null,null,null,null,{"$f":"IF(SUM(AB404:AY404)>0,1,0)","v":1},"№402",1,null,null,null,null,null,null,null,1,null,null,2,null,1,null,null,null,null,null,null,1,null,1]
["№403",null,null,null,null,null,null,null,null,null,null,null,null,null,null,null,null,null,null,null,null,null,null,null,null,{"$f":"IF(SUM(AB405:AY405)>0,1,0)","v":1},"№403",null,null,2,null,1,null,null,null,null,1,null,null,null,null,null,null,null,null,null,null,null,1,null,1]
["№404",null,null,null,null,null,null,null,null,null,null,null,null,null,null,null,null,null,null,null,null,null,null,null,null,{"$f":"IF(SUM(AB406:AY406)>0,1,0)","v":1},"№404",null,null,null,null,null,null,null,null,null,null,1,1,null,null,null,null,null,null,null,null,null,null,1,1]
["№405",null,null,null,null,null,null,null,null,null,null,null,null,null,null,null,null,null,null,null,null,null,null,null,null,{"$f":"IF(SUM(AB407:AY407)>0,1,0)","v":1},"№405",null,null,null,null,null,null,null,1,null,null,null,null,null,null,1,1,null,null,null,1]
["№406",null,null,null,null,null,null,null,null,null,null,null,null,null,null,null,null,null,null,null,null,null,null,null,null,{"$f":"IF(SUM(AB408:AY408)>0,1,0)","v":1},"№406",1,2,2,3,3,3,3,2,3,2,2,1,null,2,2,3,4,5,5,4,5,5,4,4]
["№407",null,null,null,null,null,null,null,null,null,null,null,null,null,null,null,null,null,null,null,null,null,null,null,null,{"$f":"IF(SUM(AB409:AY409)>0,1,0)","v":1},"№407",7,6,6,7,8,8,8,8,8,8,10,13,null,1,1,1,2,2,2,2,2,2,2,5]
["№408",null,null,null,null,null,null,null,null,null,null,null,null,null,null,null,null,null,null,null,null,null,null,null,null,{"$f":"IF(SUM(AB410:AY410)>0,1,0)","v":1},"№408",6,7,7,8,9,10,10,11,12,13,13,19,null,4,4,7,7,8,8,9,9,9,10,20]
["№409",null,null,null,null,null,null,null,null,null,null,null,null,null,null,null,null,null,null,null,null,null,null,null,null,{"$f":"IF(SUM(AB411:AY411)>0,1,0)","v":1},"№409",8,7,7,7,8,8,8,8,9,9,11,15,null,1,1,2,3,3,3,3,3,3,3,8]
["№410",null,null,null,null,null,null,null,null,null,null,null,null,null,null,null,null,null,null,null,null,null,null,null,null,{"$f":"IF(SUM(AB412:AY412)>0,1,0)","v":1},"№410",5,6,6,8,9,10,10,11,11,12,12,17,null,4,4,6,6,7,7,8,8,8,9,17]
["№411",null,null,null,null,null,null,null,null,null,null,null,null,null,null,null,null,null,null,null,null,null,null,null,null,{"$f":"IF(SUM(AB413:AY413)>0,1,0)","v":1},"№411",8,8,8,9,11,10,10,11,12,12,14,18,null,2,2,2,4,4,4,5,5,5,5,10]
["№412",null,null,null,null,null,null,null,null,null,null,null,null,null,null,null,null,null,null,null,null,null,null,null,null,{"$f":"IF(SUM(AB414:AY414)>0,1,0)","v":1},"№412",5,5,5,6,6,8,8,8,8,9,9,14,null,3,3,6,5,6,6,6,6,6,7,15]
["№413",null,null,null,null,null,null,null,null,null,null,null,null,null,null,null,null,null,null,null,null,null,null,null,null,{"$f":"IF(SUM(AB415:AY415)>0,1,0)","v":1},"№413",13,13,13,15,17,18,18,19,20,21,23,32,null,5,5,8,9,10,10,11,11,11,12,25]